[Event "Early-Titled-Tuesday-Blitz-September-26-2023"]
[Site "Chess.com"]
[Date "2023.09.26"]
[Round "4"]
[White "lrestevez"]
[Black "GaalZsoka"]
[Result "0-1"]
[WhiteElo "2210"]
[BlackElo "2460"]
[TimeControl "180+1"]
[EndTime "8:38:21 PDT"]
[Termination "GaalZsoka won by resignation"]

1. e4 {[%clk 0:02:57.9]} 1... c6 {[%clk 0:02:59.9]} 2. Nf3 {[%clk 0:02:57.3]}
2... g6 {[%clk 0:02:59.8]} 3. Nc3 {[%clk 0:02:57.7]} 3... Bg7 {[%clk 0:03:00]}
4. Bc4 {[%clk 0:02:57.8]} 4... Nf6 {[%clk 0:02:54.6]} 5. Qe2 {[%clk 0:02:58.2]}
5... d5 {[%clk 0:02:51.3]} 6. exd5 {[%clk 0:02:56.1]} 6... cxd5 {[%clk
0:02:52.2]} 7. Bb3 {[%clk 0:02:55.1]} 7... O-O {[%clk 0:02:51.5]} 8. d4 {[%clk
0:02:55.1]} 8... Nc6 {[%clk 0:02:50.1]} 9. Be3 {[%clk 0:02:55.1]} 9... Bf5
{[%clk 0:02:35.9]} 10. O-O-O {[%clk 0:02:54.2]} 10... Rc8 {[%clk 0:02:35.3]} 11.
h3 {[%clk 0:02:48.7]} 11... Ne4 {[%clk 0:02:26.4]} 12. Nxd5 {[%clk 0:02:38.8]}
12... Na5 {[%clk 0:02:26.8]} 13. Nb4 {[%clk 0:02:19.7]} 13... Nxb3+ {[%clk
0:02:21]} 14. Kb1 {[%clk 0:01:46.9]} 14... Na5 {[%clk 0:01:57.6]} 15. Nh4 {[%clk
0:01:42.6]} 15... Be6 {[%clk 0:01:38.4]} 16. d5 {[%clk 0:01:40.7]} 16... Bd7
{[%clk 0:01:33.2]} 17. Bd4 {[%clk 0:01:13]} 17... Bxd4 {[%clk 0:01:21.3]} 18.
Rxd4 {[%clk 0:01:13.9]} 18... Nf6 {[%clk 0:01:21.4]} 19. Re1 {[%clk 0:01:08.2]}
19... Qb6 {[%clk 0:01:21.1]} 20. c3 {[%clk 0:01:06.1]} 20... e5 {[%clk
0:01:07.9]} 21. dxe6 {[%clk 0:01:04.9]} 21... Bxe6 {[%clk 0:01:08]} 22. a3
{[%clk 0:00:58.3]} 22... Nc4 {[%clk 0:01:02.7]} 23. g4 {[%clk 0:00:52.6]} 23...
a5 {[%clk 0:01:02.2]} 24. Nd3 {[%clk 0:00:51.9]} 24... Nxa3+ {[%clk 0:01:00.6]}
25. Kc1 {[%clk 0:00:47.2]} 25... Qb3 {[%clk 0:00:56.9]} 26. Nf4 {[%clk
0:00:39.8]} 26... Rxc3+ {[%clk 0:00:44.1]} 27. bxc3 {[%clk 0:00:39.8]} 27...
Qxc3+ {[%clk 0:00:44.6]} 28. Kd1 {[%clk 0:00:38]} 28... Bb3+ {[%clk 0:00:43.8]}
0-1

[Event "Early-Titled-Tuesday-Blitz-September-26-2023"]
[Site "Chess.com"]
[Date "2023.09.26"]
[Round "4"]
[White "Artemiki"]
[Black "andrzej"]
[Result "0-1"]
[WhiteElo "2208"]
[BlackElo "2466"]
[TimeControl "180+1"]
[EndTime "8:38:26 PDT"]
[Termination "andrzej won on time"]

1. e4 {[%clk 0:03:00.9]} 1... e5 {[%clk 0:03:00]} 2. Nf3 {[%clk 0:03:01.4]} 2...
Nf6 {[%clk 0:03:00.4]} 3. d4 {[%clk 0:02:59.9]} 3... Nxe4 {[%clk 0:03:00]} 4.
Bd3 {[%clk 0:02:57.6]} 4... d5 {[%clk 0:02:59.8]} 5. Nxe5 {[%clk 0:02:58.4]}
5... Bd6 {[%clk 0:03:00.2]} 6. O-O {[%clk 0:02:58.4]} 6... O-O {[%clk
0:03:00.9]} 7. Nc3 {[%clk 0:02:57.1]} 7... Nxc3 {[%clk 0:02:59.7]} 8. bxc3
{[%clk 0:02:58]} 8... Nd7 {[%clk 0:03:00]} 9. Nxd7 {[%clk 0:02:53.7]} 9... Qxd7
{[%clk 0:02:41.5]} 10. Qh5 {[%clk 0:02:33.5]} 10... g6 {[%clk 0:02:41]} 11. Qh4
{[%clk 0:02:30.1]} 11... Qg4 {[%clk 0:02:34.6]} 12. Qh6 {[%clk 0:02:07.7]} 12...
Re8 {[%clk 0:01:33.7]} 13. h3 {[%clk 0:01:56.6]} 13... Qd7 {[%clk 0:01:33.5]}
14. Bg5 {[%clk 0:01:52.3]} 14... c6 {[%clk 0:01:26.9]} 15. Rfe1 {[%clk
0:01:47.9]} 15... Bf8 {[%clk 0:01:25.3]} 16. Qh4 {[%clk 0:01:44.2]} 16... b6
{[%clk 0:01:17.2]} 17. Bf6 {[%clk 0:01:10.1]} 17... Bb7 {[%clk 0:01:11.7]} 18.
Re5 {[%clk 0:01:06.4]} 18... Rxe5 {[%clk 0:01:08.7]} 19. dxe5 {[%clk 0:00:49.4]}
19... c5 {[%clk 0:01:08.7]} 20. Re1 {[%clk 0:00:47]} 20... Re8 {[%clk
0:01:08.5]} 21. Qf4 {[%clk 0:00:39.7]} 21... Qc6 {[%clk 0:01:00.8]} 0-1

[Event "Early-Titled-Tuesday-Blitz-September-26-2023"]
[Site "Chess.com"]
[Date "2023.09.26"]
[Round "4"]
[White "Arteler"]
[Black "Rozhkov_V"]
[Result "0-1"]
[WhiteElo "2579"]
[BlackElo "2415"]
[TimeControl "180+1"]
[EndTime "8:38:29 PDT"]
[Termination "Rozhkov_V won by resignation"]

1. e4 {[%clk 0:02:47.5]} 1... e6 {[%clk 0:02:59.7]} 2. d4 {[%clk 0:02:47.1]}
2... d5 {[%clk 0:03:00.1]} 3. Nd2 {[%clk 0:02:47.7]} 3... c5 {[%clk 0:02:59.1]}
4. exd5 {[%clk 0:02:47.6]} 4... Qxd5 {[%clk 0:02:58.8]} 5. Ngf3 {[%clk
0:02:47.9]} 5... cxd4 {[%clk 0:02:58.6]} 6. Bc4 {[%clk 0:02:47]} 6... Qd6 {[%clk
0:02:59.2]} 7. O-O {[%clk 0:02:47.3]} 7... Nf6 {[%clk 0:02:59.7]} 8. Nb3 {[%clk
0:02:47.8]} 8... Nc6 {[%clk 0:03:00.3]} 9. Nbxd4 {[%clk 0:02:48.1]} 9... Nxd4
{[%clk 0:03:01]} 10. Nxd4 {[%clk 0:02:48.7]} 10... Be7 {[%clk 0:03:00.1]} 11. c3
{[%clk 0:02:47.5]} 11... O-O {[%clk 0:02:59.7]} 12. Qf3 {[%clk 0:02:46.8]} 12...
Qc7 {[%clk 0:02:57.9]} 13. Bb3 {[%clk 0:02:46.1]} 13... a5 {[%clk 0:02:57.9]}
14. a4 {[%clk 0:02:43.5]} 14... Bd7 {[%clk 0:02:57.3]} 15. Bg5 {[%clk
0:02:39.9]} 15... Bc6 {[%clk 0:02:40.9]} 16. Qh3 {[%clk 0:02:17.2]} 16... h6
{[%clk 0:02:36.7]} 17. Bh4 {[%clk 0:02:09.3]} 17... Be4 {[%clk 0:02:31.9]} 18.
Nxe6 {[%clk 0:01:55.9]} 18... fxe6 {[%clk 0:02:28.3]} 19. Qxe6+ {[%clk
0:01:56.1]} 19... Kh8 {[%clk 0:02:27.3]} 20. Bxf6 {[%clk 0:01:56.5]} 20... Rxf6
{[%clk 0:01:46]} 21. Qxe4 {[%clk 0:01:56.2]} 21... Raf8 {[%clk 0:01:46.4]} 22.
Bc2 {[%clk 0:01:53.7]} 22... g6 {[%clk 0:01:47]} 23. Qe3 {[%clk 0:01:31.5]}
23... Kg7 {[%clk 0:01:44.6]} 24. Rad1 {[%clk 0:01:30.7]} 24... Bc5 {[%clk
0:01:43.5]} 25. Qh3 {[%clk 0:01:23.1]} 25... Rxf2 {[%clk 0:01:37.5]} 26. Rxf2
{[%clk 0:01:22.6]} 26... Rxf2 {[%clk 0:01:38]} 27. Kh1 {[%clk 0:01:17.2]} 27...
Qf7 {[%clk 0:01:28.4]} 28. Bd3 {[%clk 0:01:04.3]} 28... Rxb2 {[%clk 0:01:28.3]}
29. Bc4 {[%clk 0:00:32]} 29... Qxc4 {[%clk 0:00:55]} 30. Rd7+ {[%clk 0:00:31.9]}
30... Kg8 {[%clk 0:00:52.1]} 0-1

[Event "Early-Titled-Tuesday-Blitz-September-26-2023"]
[Site "Chess.com"]
[Date "2023.09.26"]
[Round "4"]
[White "baki83"]
[Black "PapiPapita"]
[Result "1-0"]
[WhiteElo "2828"]
[BlackElo "2585"]
[TimeControl "180+1"]
[EndTime "8:38:31 PDT"]
[Termination "baki83 won on time"]

1. e4 {[%clk 0:03:00.9]} 1... c6 {[%clk 0:02:59.4]} 2. Nf3 {[%clk 0:03:00.1]}
2... d5 {[%clk 0:03:00.3]} 3. d3 {[%clk 0:03:00.1]} 3... Qc7 {[%clk 0:02:56.5]}
4. Nc3 {[%clk 0:02:58.4]} 4... Nf6 {[%clk 0:02:55.5]} 5. h3 {[%clk 0:02:56.3]}
5... e5 {[%clk 0:02:53.7]} 6. a3 {[%clk 0:02:43.3]} 6... h6 {[%clk 0:02:34.9]}
7. g3 {[%clk 0:02:42.7]} 7... dxe4 {[%clk 0:02:34.3]} 8. dxe4 {[%clk 0:02:36.5]}
8... Bc5 {[%clk 0:02:34.3]} 9. Bg2 {[%clk 0:02:34.2]} 9... O-O {[%clk
0:02:34.2]} 10. O-O {[%clk 0:02:33.8]} 10... Be6 {[%clk 0:02:28.9]} 11. Qe2
{[%clk 0:02:25.2]} 11... a5 {[%clk 0:02:27.6]} 12. Nh4 {[%clk 0:02:19.2]} 12...
b5 {[%clk 0:02:01.7]} 13. Rd1 {[%clk 0:02:05.4]} 13... Nbd7 {[%clk 0:01:59.4]}
14. Nf5 {[%clk 0:02:03.7]} 14... Rfd8 {[%clk 0:01:54.3]} 15. g4 {[%clk
0:01:49.7]} 15... b4 {[%clk 0:01:16.4]} 16. Na4 {[%clk 0:01:40.8]} 16... Bf8
{[%clk 0:01:16.6]} 17. g5 {[%clk 0:01:34.8]} 17... hxg5 {[%clk 0:01:14.6]} 18.
Bxg5 {[%clk 0:01:35.7]} 18... g6 {[%clk 0:01:11.6]} 19. Nh6+ {[%clk 0:01:16]}
19... Kh7 {[%clk 0:00:57.6]} 20. Ng4 {[%clk 0:01:10.5]} 20... Be7 {[%clk
0:00:54.8]} 21. Rxd7 {[%clk 0:01:05]} 21... Rxd7 {[%clk 0:00:38.2]} 22. Nxf6+
{[%clk 0:01:01.8]} 22... Bxf6 {[%clk 0:00:19.5]} 23. Bxf6 {[%clk 0:01:02.7]}
23... Qd6 {[%clk 0:00:11.5]} 24. Nb6 {[%clk 0:01:00]} 1-0

[Event "Early-Titled-Tuesday-Blitz-September-26-2023"]
[Site "Chess.com"]
[Date "2023.09.26"]
[Round "4"]
[White "Lennis93"]
[Black "Shuvalov"]
[Result "1-0"]
[WhiteElo "2720"]
[BlackElo "2470"]
[TimeControl "180+1"]
[EndTime "8:38:33 PDT"]
[Termination "Lennis93 won on time"]

1. b3 {[%clk 0:03:00.9]} 1... d5 {[%clk 0:02:59.1]} 2. Bb2 {[%clk 0:03:00.6]}
2... Nf6 {[%clk 0:02:59.7]} 3. Nf3 {[%clk 0:03:00.7]} 3... Bg4 {[%clk
0:02:58.3]} 4. Ne5 {[%clk 0:02:59.6]} 4... Bf5 {[%clk 0:02:58.3]} 5. e3 {[%clk
0:02:55.8]} 5... Nbd7 {[%clk 0:02:57.8]} 6. Nf3 {[%clk 0:02:54.5]} 6... e6
{[%clk 0:02:50.7]} 7. Be2 {[%clk 0:02:54.8]} 7... Bd6 {[%clk 0:02:49.5]} 8. Nh4
{[%clk 0:02:54.7]} 8... Bg6 {[%clk 0:02:47.7]} 9. Nxg6 {[%clk 0:02:54.4]} 9...
hxg6 {[%clk 0:02:48.6]} 10. h3 {[%clk 0:02:54.9]} 10... e5 {[%clk 0:02:47.5]}
11. d3 {[%clk 0:02:55.3]} 11... Qe7 {[%clk 0:02:47]} 12. a3 {[%clk 0:02:54.8]}
12... a5 {[%clk 0:02:43.1]} 13. Nd2 {[%clk 0:02:54.2]} 13... g5 {[%clk
0:02:42.5]} 14. e4 {[%clk 0:02:53.4]} 14... d4 {[%clk 0:02:38.1]} 15. Bg4 {[%clk
0:02:53.2]} 15... Nf8 {[%clk 0:02:32.8]} 16. Qe2 {[%clk 0:02:50.6]} 16... Ng6
{[%clk 0:02:32.2]} 17. g3 {[%clk 0:02:50.2]} 17... Nxg4 {[%clk 0:02:24.8]} 18.
Qxg4 {[%clk 0:02:49.8]} 18... Qd7 {[%clk 0:02:20.4]} 19. Qxg5 {[%clk 0:02:41.6]}
19... Rxh3 {[%clk 0:02:19.5]} 20. Ke2 {[%clk 0:02:41.3]} 20... Be7 {[%clk
0:01:50.5]} 21. Qf5 {[%clk 0:02:40.7]} 21... Rxh1 {[%clk 0:01:47.6]} 22. Rxh1
{[%clk 0:02:39.5]} 22... Qe6 {[%clk 0:01:29.5]} 23. Rh7 {[%clk 0:02:38.3]} 23...
Bf8 {[%clk 0:01:21.7]} 24. Qxe6+ {[%clk 0:02:29.4]} 24... fxe6 {[%clk
0:01:22.6]} 25. a4 {[%clk 0:02:29]} 25... c6 {[%clk 0:01:14.9]} 26. Nc4 {[%clk
0:02:29.1]} 26... b5 {[%clk 0:01:10.2]} 27. Nd2 {[%clk 0:02:23.5]} 27... Kf7
{[%clk 0:01:05.2]} 28. Rh1 {[%clk 0:02:21.9]} 28... Bb4 {[%clk 0:01:04.5]} 29.
Nf3 {[%clk 0:02:18.4]} 29... Be7 {[%clk 0:00:56.9]} 30. Ra1 {[%clk 0:02:16.4]}
30... Bf6 {[%clk 0:00:48.7]} 31. Bc1 {[%clk 0:02:13.5]} 31... b4 {[%clk
0:00:21.7]} 32. Nd2 {[%clk 0:02:13.1]} 32... Rh8 {[%clk 0:00:20.2]} 33. Nc4
{[%clk 0:02:13.6]} 33... Bd8 {[%clk 0:00:20.8]} 34. Bd2 {[%clk 0:02:12.9]} 34...
Bc7 {[%clk 0:00:20.6]} 35. Kf3 {[%clk 0:02:12.2]} 35... Nf8 {[%clk 0:00:18]} 36.
Bg5 {[%clk 0:02:09]} 36... Nd7 {[%clk 0:00:17.3]} 37. Kg2 {[%clk 0:02:08.1]}
37... Nf6 {[%clk 0:00:15.4]} 38. Rf1 {[%clk 0:01:56.5]} 38... Kg6 {[%clk
0:00:15.4]} 39. Bd2 {[%clk 0:01:55.3]} 39... Ng4 {[%clk 0:00:14.9]} 40. Be1
{[%clk 0:01:50]} 40... Rh2+ {[%clk 0:00:12]} 41. Kg1 {[%clk 0:01:50]} 41... Rh8
{[%clk 0:00:12.6]} 42. f3 {[%clk 0:01:46.1]} 42... Ne3 {[%clk 0:00:05.2]} 43.
Nxe3 {[%clk 0:01:46.2]} 43... dxe3 {[%clk 0:00:06.1]} 44. Kg2 {[%clk 0:01:46.8]}
44... Bb6 {[%clk 0:00:05.3]} 45. Rh1 {[%clk 0:01:47.4]} 1-0

[Event "Early-Titled-Tuesday-Blitz-September-26-2023"]
[Site "Chess.com"]
[Date "2023.09.26"]
[Round "4"]
[White "Vanina1989"]
[Black "ellatambien"]
[Result "0-1"]
[WhiteElo "2709"]
[BlackElo "2515"]
[TimeControl "180+1"]
[EndTime "8:38:38 PDT"]
[Termination "ellatambien won by resignation"]

1. d4 {[%clk 0:02:57.9]} 1... Nf6 {[%clk 0:02:59.4]} 2. c4 {[%clk 0:02:56.9]}
2... e6 {[%clk 0:02:59.3]} 3. Nf3 {[%clk 0:02:57.1]} 3... d5 {[%clk 0:02:58.4]}
4. Nc3 {[%clk 0:02:56.7]} 4... Bb4 {[%clk 0:02:57.8]} 5. cxd5 {[%clk 0:02:53.3]}
5... exd5 {[%clk 0:02:57.7]} 6. Bg5 {[%clk 0:02:53.4]} 6... h6 {[%clk
0:02:57.1]} 7. Bh4 {[%clk 0:02:52.1]} 7... O-O {[%clk 0:02:55.4]} 8. e3 {[%clk
0:02:51.1]} 8... Bf5 {[%clk 0:02:55.2]} 9. Be2 {[%clk 0:02:49.1]} 9... c6 {[%clk
0:02:48.4]} 10. Qb3 {[%clk 0:02:48.8]} 10... Bxc3+ {[%clk 0:02:44.3]} 11. bxc3
{[%clk 0:02:47.5]} 11... g5 {[%clk 0:02:37]} 12. Bg3 {[%clk 0:02:47.4]} 12...
Qb6 {[%clk 0:02:37.9]} 13. Nd2 {[%clk 0:02:43]} 13... Nbd7 {[%clk 0:02:34.7]}
14. O-O {[%clk 0:02:42.7]} 14... c5 {[%clk 0:02:26]} 15. dxc5 {[%clk 0:02:29.7]}
15... Nxc5 {[%clk 0:02:23.8]} 16. Qxb6 {[%clk 0:02:24.1]} 16... axb6 {[%clk
0:02:24.7]} 17. f3 {[%clk 0:02:20.6]} 17... Rfe8 {[%clk 0:02:20.5]} 18. Kf2
{[%clk 0:02:17.4]} 18... Ra3 {[%clk 0:02:16.8]} 19. Rfc1 {[%clk 0:02:11.7]}
19... Rea8 {[%clk 0:02:13]} 20. c4 {[%clk 0:01:40]} 20... Rxa2 {[%clk
0:02:10.4]} 21. Rxa2 {[%clk 0:01:38]} 21... Rxa2 {[%clk 0:02:11.3]} 22. Ke1
{[%clk 0:01:32.4]} 22... Bd3 {[%clk 0:01:49.2]} 23. Be5 {[%clk 0:01:32.1]} 23...
Bxe2 {[%clk 0:01:41.3]} 24. Kxe2 {[%clk 0:01:26.3]} 24... Nb3 {[%clk 0:01:40.5]}
25. Rd1 {[%clk 0:01:18.1]} 25... Nd7 {[%clk 0:01:38.5]} 26. Bc3 {[%clk
0:01:14.3]} 26... dxc4 {[%clk 0:01:37.2]} 27. e4 {[%clk 0:01:14.1]} 27... Ndc5
{[%clk 0:01:36.6]} 28. Ke3 {[%clk 0:01:14.1]} 28... Na4 {[%clk 0:01:35.5]} 29.
Nxb3 {[%clk 0:01:07.3]} 29... Nxc3 {[%clk 0:01:34.1]} 30. Rd8+ {[%clk
0:01:03.3]} 30... Kg7 {[%clk 0:01:34.4]} 31. Nd2 {[%clk 0:01:00.7]} 31... b5
{[%clk 0:01:29.8]} 32. e5 {[%clk 0:00:56.8]} 32... Nd1+ {[%clk 0:01:25.5]} 33.
Ke2 {[%clk 0:00:56.8]} 33... c3 {[%clk 0:01:21.2]} 34. Kxd1 {[%clk 0:00:54.3]}
34... Rxd2+ {[%clk 0:01:20.5]} 35. Rxd2 {[%clk 0:00:53.7]} 35... cxd2 {[%clk
0:01:20.8]} 36. Kxd2 {[%clk 0:00:53.5]} 36... Kf8 {[%clk 0:01:08.1]} 37. Kc3
{[%clk 0:00:52]} 37... Ke7 {[%clk 0:01:08.2]} 38. Kb4 {[%clk 0:00:50.8]} 38...
Ke6 {[%clk 0:01:08.7]} 39. Kxb5 {[%clk 0:00:51.5]} 39... Kxe5 {[%clk 0:01:09.6]}
40. Kb6 {[%clk 0:00:52.1]} 40... Kf4 {[%clk 0:01:10.5]} 41. Kxb7 {[%clk
0:00:51.8]} 41... Ke3 {[%clk 0:01:11.1]} 42. Kc6 {[%clk 0:00:52]} 42... Kf2
{[%clk 0:01:11.7]} 43. Kd6 {[%clk 0:00:43.7]} 43... Kxg2 {[%clk 0:01:11.8]} 44.
Ke7 {[%clk 0:00:43.7]} 44... Kxf3 {[%clk 0:01:06]} 45. Kxf7 {[%clk 0:00:44]}
45... Kg2 {[%clk 0:01:06.6]} 0-1

[Event "Early-Titled-Tuesday-Blitz-September-26-2023"]
[Site "Chess.com"]
[Date "2023.09.26"]
[Round "4"]
[White "koncheto"]
[Black "ApoIogiA"]
[Result "1-0"]
[WhiteElo "2553"]
[BlackElo "2287"]
[TimeControl "180+1"]
[EndTime "8:38:40 PDT"]
[Termination "koncheto won by resignation"]

1. e4 {[%clk 0:03:00.9]} 1... c5 {[%clk 0:02:57.1]} 2. Nf3 {[%clk 0:03:00.7]}
2... Nc6 {[%clk 0:02:56.9]} 3. d4 {[%clk 0:03:01.3]} 3... cxd4 {[%clk
0:02:57.8]} 4. Nxd4 {[%clk 0:03:02.2]} 4... Nf6 {[%clk 0:02:58.4]} 5. Nc3 {[%clk
0:03:02]} 5... e5 {[%clk 0:02:58.4]} 6. Ndb5 {[%clk 0:03:01.8]} 6... d6 {[%clk
0:02:59.2]} 7. Bg5 {[%clk 0:03:02.1]} 7... a6 {[%clk 0:02:58.9]} 8. Na3 {[%clk
0:03:02.5]} 8... b5 {[%clk 0:02:57.2]} 9. Nd5 {[%clk 0:03:02.8]} 9... Be7 {[%clk
0:02:55.4]} 10. Bxf6 {[%clk 0:03:02.6]} 10... Bxf6 {[%clk 0:02:55.1]} 11. c3
{[%clk 0:03:02.9]} 11... O-O {[%clk 0:02:53.8]} 12. Nc2 {[%clk 0:03:01.9]} 12...
Be6 {[%clk 0:02:48.8]} 13. Nce3 {[%clk 0:02:59.2]} 13... Bg5 {[%clk 0:02:48.9]}
14. Be2 {[%clk 0:02:57.7]} 14... Bxe3 {[%clk 0:02:45.5]} 15. Nxe3 {[%clk
0:02:57.6]} 15... Rc8 {[%clk 0:02:30.6]} 16. O-O {[%clk 0:02:57.2]} 16... b4
{[%clk 0:02:29.4]} 17. Bxa6 {[%clk 0:02:55.6]} 17... Rc7 {[%clk 0:02:23.1]} 18.
Nd5 {[%clk 0:02:48.9]} 18... Bxd5 {[%clk 0:02:21.1]} 19. Qxd5 {[%clk 0:02:41.6]}
19... bxc3 {[%clk 0:02:21.4]} 20. bxc3 {[%clk 0:02:41.7]} 20... Qa8 {[%clk
0:02:17.6]} 21. Bb5 {[%clk 0:02:38.7]} 21... Rd8 {[%clk 0:02:15.5]} 22. Rfd1
{[%clk 0:02:27.9]} 22... Kf8 {[%clk 0:01:58.5]} 23. g3 {[%clk 0:02:24.5]} 23...
Ke7 {[%clk 0:01:58.3]} 24. Bc4 {[%clk 0:02:03.3]} 24... Ke8 {[%clk 0:01:41.3]}
25. Rab1 {[%clk 0:02:01]} 25... Na5 {[%clk 0:01:39.2]} 26. Qxa8 {[%clk
0:01:49.8]} 26... Rxa8 {[%clk 0:01:40.1]} 27. Bd5 {[%clk 0:01:20.1]} 27... Raa7
{[%clk 0:01:38.5]} 28. Rb8+ {[%clk 0:01:04.3]} 28... Ke7 {[%clk 0:01:38]} 29.
Rg8 {[%clk 0:01:05]} 29... Kf6 {[%clk 0:01:28.9]} 30. Rd3 {[%clk 0:01:02.9]}
30... Ra6 {[%clk 0:01:22.7]} 31. Rf8 {[%clk 0:00:55.7]} 31... Nc6 {[%clk
0:01:14.9]} 32. Rf3+ {[%clk 0:00:53.8]} 32... Kg6 {[%clk 0:01:11]} 33. R8xf7
{[%clk 0:00:48.3]} 33... Ne7 {[%clk 0:01:02.1]} 34. Be6 {[%clk 0:00:46.9]} 34...
d5 {[%clk 0:00:39.4]} 35. exd5 {[%clk 0:00:44.1]} 35... Nxd5 {[%clk 0:00:37.5]}
36. Bxd5 {[%clk 0:00:40.1]} 1-0

[Event "Early-Titled-Tuesday-Blitz-September-26-2023"]
[Site "Chess.com"]
[Date "2023.09.26"]
[Round "4"]
[White "AnaKuchava"]
[Black "Cheer_Down"]
[Result "1-0"]
[WhiteElo "2247"]
[BlackElo "2463"]
[TimeControl "180+1"]
[EndTime "8:38:41 PDT"]
[Termination "AnaKuchava won by resignation"]

1. d4 {[%clk 0:03:00.9]} 1... Nf6 {[%clk 0:02:57.2]} 2. Nf3 {[%clk 0:02:59.3]}
2... d5 {[%clk 0:02:55.4]} 3. c4 {[%clk 0:02:54.8]} 3... e6 {[%clk 0:02:55.3]}
4. Nc3 {[%clk 0:02:53.5]} 4... c5 {[%clk 0:02:54.7]} 5. cxd5 {[%clk 0:02:51]}
5... Nxd5 {[%clk 0:02:54.9]} 6. e4 {[%clk 0:02:48]} 6... Nxc3 {[%clk 0:02:55]}
7. bxc3 {[%clk 0:02:48.9]} 7... cxd4 {[%clk 0:02:55.7]} 8. cxd4 {[%clk
0:02:48.2]} 8... Bb4+ {[%clk 0:02:56.3]} 9. Bd2 {[%clk 0:02:47.9]} 9... Bxd2+
{[%clk 0:02:56.5]} 10. Qxd2 {[%clk 0:02:48.8]} 10... O-O {[%clk 0:02:56.7]} 11.
Be2 {[%clk 0:02:46.6]} 11... b6 {[%clk 0:02:41.8]} 12. O-O {[%clk 0:02:36.9]}
12... Bb7 {[%clk 0:02:42]} 13. Qe3 {[%clk 0:02:37.3]} 13... Nc6 {[%clk
0:02:38.3]} 14. Rfd1 {[%clk 0:02:34.4]} 14... Ne7 {[%clk 0:02:34.1]} 15. Rac1
{[%clk 0:02:31.7]} 15... h6 {[%clk 0:02:30.8]} 16. h3 {[%clk 0:02:27.2]} 16...
Rc8 {[%clk 0:02:30.2]} 17. Rxc8 {[%clk 0:02:22.6]} 17... Qxc8 {[%clk 0:02:29.4]}
18. Rc1 {[%clk 0:02:22.3]} 18... Qa8 {[%clk 0:02:28.9]} 19. Bd3 {[%clk
0:02:21.2]} 19... Rc8 {[%clk 0:02:28.9]} 20. Ne5 {[%clk 0:02:17.6]} 20... Rxc1+
{[%clk 0:02:19.2]} 21. Qxc1 {[%clk 0:02:18.5]} 21... Bxe4 {[%clk 0:02:15.9]} 22.
Qc7 {[%clk 0:02:11.8]} 22... Bxd3 {[%clk 0:01:42.5]} 23. Qxe7 {[%clk 0:02:10.7]}
23... Bg6 {[%clk 0:01:42]} 24. Nxg6 {[%clk 0:02:08.8]} 24... fxg6 {[%clk
0:01:42.9]} 25. Qxe6+ {[%clk 0:02:09.3]} 25... Kh7 {[%clk 0:01:43.3]} 26. d5
{[%clk 0:02:05.4]} 26... b5 {[%clk 0:01:35.3]} 27. Qc6 {[%clk 0:01:18.7]} 27...
Qb8 {[%clk 0:01:30.5]} 28. d6 {[%clk 0:01:15.6]} 28... Qf8 {[%clk 0:01:14.6]}
29. d7 {[%clk 0:01:09.7]} 29... b4 {[%clk 0:01:05.1]} 30. Qc8 {[%clk 0:00:59.7]}
1-0

[Event "Early-Titled-Tuesday-Blitz-September-26-2023"]
[Site "Chess.com"]
[Date "2023.09.26"]
[Round "4"]
[White "SHIVACalypso"]
[Black "Fore_Man"]
[Result "1-0"]
[WhiteElo "2501"]
[BlackElo "2284"]
[TimeControl "180+1"]
[EndTime "8:38:44 PDT"]
[Termination "SHIVACalypso won by resignation"]

1. e4 {[%clk 0:02:58.2]} 1... c5 {[%clk 0:02:46.8]} 2. Nf3 {[%clk 0:02:57]} 2...
Nc6 {[%clk 0:02:47.4]} 3. d4 {[%clk 0:02:57.6]} 3... cxd4 {[%clk 0:02:48.3]} 4.
Nxd4 {[%clk 0:02:58.3]} 4... g6 {[%clk 0:02:49]} 5. c4 {[%clk 0:02:55.5]} 5...
Bg7 {[%clk 0:02:49.5]} 6. Be3 {[%clk 0:02:56]} 6... Nf6 {[%clk 0:02:49.3]} 7.
Nc3 {[%clk 0:02:55.8]} 7... O-O {[%clk 0:02:49]} 8. Be2 {[%clk 0:02:51]} 8... a6
{[%clk 0:02:48.2]} 9. O-O {[%clk 0:02:50.4]} 9... d6 {[%clk 0:02:48.6]} 10. Rc1
{[%clk 0:02:49.2]} 10... Nxd4 {[%clk 0:02:47.1]} 11. Bxd4 {[%clk 0:02:49.1]}
11... Bd7 {[%clk 0:02:48]} 12. Qc2 {[%clk 0:02:46]} 12... Qa5 {[%clk 0:02:48]}
13. Rfd1 {[%clk 0:02:45.4]} 13... b5 {[%clk 0:02:47.9]} 14. c5 {[%clk
0:02:44.5]} 14... b4 {[%clk 0:02:37.6]} 15. Bxf6 {[%clk 0:02:42]} 15... exf6
{[%clk 0:02:32.8]} 16. Rxd6 {[%clk 0:02:36.6]} 16... bxc3 {[%clk 0:02:30.7]} 17.
Rxd7 {[%clk 0:02:35.7]} 17... Qxc5 {[%clk 0:02:28.9]} 18. Qxc3 {[%clk
0:02:32.6]} 18... Qe5 {[%clk 0:02:28.8]} 19. f3 {[%clk 0:02:23]} 19... Qg5
{[%clk 0:02:23.5]} 20. Rcd1 {[%clk 0:02:13.5]} 20... f5 {[%clk 0:02:23.4]} 21.
Qc5 {[%clk 0:02:12]} 21... Rfc8 {[%clk 0:02:18.4]} 22. Qf2 {[%clk 0:02:08.6]}
22... fxe4 {[%clk 0:02:13.2]} 23. fxe4 {[%clk 0:02:09.5]} 23... Qc5 {[%clk
0:02:04.6]} 24. Qxc5 {[%clk 0:01:57.1]} 24... Rxc5 {[%clk 0:02:05.5]} 25. b3
{[%clk 0:01:57.7]} 25... Re5 {[%clk 0:02:02.1]} 26. Bc4 {[%clk 0:01:56.8]} 26...
Rf8 {[%clk 0:01:51.2]} 27. Rf1 {[%clk 0:01:54.6]} 27... Rxe4 {[%clk 0:01:48.6]}
28. Rfxf7 {[%clk 0:01:54]} 28... Rxf7 {[%clk 0:01:42.6]} 29. Bxf7+ {[%clk
0:01:53.7]} 29... Kf8 {[%clk 0:01:43]} 30. Bc4 {[%clk 0:01:52.5]} 30... Bd4+
{[%clk 0:01:17.5]} 31. Kf1 {[%clk 0:01:52.2]} 31... Rf4+ {[%clk 0:01:17.9]} 32.
Ke2 {[%clk 0:01:51.8]} 32... Rf2+ {[%clk 0:01:06.2]} 33. Kd3 {[%clk 0:01:51.2]}
33... Bg7 {[%clk 0:01:05.5]} 34. g3 {[%clk 0:01:48.4]} 34... a5 {[%clk
0:00:57.9]} 35. a4 {[%clk 0:01:47.9]} 35... h5 {[%clk 0:00:53.7]} 36. Ra7 {[%clk
0:01:46.5]} 36... Bb2 {[%clk 0:00:40.9]} 37. Rxa5 {[%clk 0:01:45.6]} 37... Rxh2
{[%clk 0:00:41]} 38. Ra8+ {[%clk 0:01:45.2]} 38... Kg7 {[%clk 0:00:40.2]} 39. a5
{[%clk 0:01:46.1]} 39... Rg2 {[%clk 0:00:29.6]} 40. a6 {[%clk 0:01:45.9]} 40...
Rxg3+ {[%clk 0:00:30]} 41. Ke4 {[%clk 0:01:44.5]} 41... Rg4+ {[%clk 0:00:29.4]}
42. Kf3 {[%clk 0:01:44.3]} 42... Rg1 {[%clk 0:00:20.2]} 43. a7 {[%clk
0:01:43.6]} 43... Ra1 {[%clk 0:00:20.7]} 44. Rg8+ {[%clk 0:01:43]} 44... Kh7
{[%clk 0:00:19.9]} 45. a8=Q {[%clk 0:01:43.9]} 45... Rxa8 {[%clk 0:00:19.1]} 46.
Rxa8 {[%clk 0:01:44.8]} 46... g5 {[%clk 0:00:19.7]} 47. Ra6 {[%clk 0:01:43.4]}
47... g4+ {[%clk 0:00:19.7]} 48. Kf4 {[%clk 0:01:42.8]} 48... Bc1+ {[%clk
0:00:17.8]} 49. Kf5 {[%clk 0:01:43]} 49... g3 {[%clk 0:00:16.3]} 50. Bf1 {[%clk
0:01:42.4]} 50... Be3 {[%clk 0:00:14.5]} 51. Bh3 {[%clk 0:01:41.2]} 51... h4
{[%clk 0:00:14.1]} 52. b4 {[%clk 0:01:41.7]} 52... Kg7 {[%clk 0:00:14.1]} 53. b5
{[%clk 0:01:42.2]} 53... g2 {[%clk 0:00:13.2]} 54. Bxg2 {[%clk 0:01:41.8]} 54...
h3 {[%clk 0:00:13]} 55. Bxh3 {[%clk 0:01:41.9]} 1-0